[Event "121st Swiss Championship 2022"]
[Site "Samnaun-Compatsch"]
[Date "2022.07.06"]
[Round "4.10"]
[White "Gemelli, Romain"]
[Black "Ferster, Fabian"]
[Result "1-0"]
[ECO "E60"]
[WhiteElo "2045"]
[BlackElo "2173"]
[Annotator "TA"]
[PlyCount "67"]
[EventDate "2022.06.28"]
[EventType "swiss"]
[EventCountry "SUI"]
[SourceTitle "playchess.com"]
[Source "ChessBase"]
[SourceQuality "1"]
[TimeControl "40/5400+30:1800+30"]

{[%evp 9,67,18,12,7,20,0,0,0,0,0,18,-33,-14,-37,0,-8,0,-4,-19,-5,0,-223,-217,-236,-60,-68,-51,-48,-37,-23,-31,-58,-66,-618,-127,-296,-135,-119,-61,-69,-3,-2,167,89,202,19,205,-37,409,390,362,176,29978,29979,29979,29980,29980,29981,29978,29979]} 1. d4 {[%emt 0:00:07]} Nf6 {[%emt 0:00:07]} 2. c4 {[%emt 0:00:07]} g6 {[%emt 0:00:04]} 3. h4 {[%emt 0:00:08]} c5 {[%emt 0:04:04]} 4. d5 {[%emt 0:01:18]} Bg7 {[%emt 0:04:31]} 5. Nc3 {[%emt 0:00:30]} d6 {[%emt 0:00:07]} 6. e4 {[%emt 0:00:44] E60: King's Indian: Unusual lines and Fianchetto Variation without Nc3.} e6 {[%emt 0:00:06]} 7. Be2 {[%emt 0:00:16]} exd5 {[%emt 0:00:58]} 8. exd5 {[%emt 0:00:09] The position is equal.} O-O {[%emt 0:07:43]} 9. h5 {[%emt 0:00:59]} Re8 {[%emt 0:00:24]} 10. h6 {[%emt 0:00:08]} (10. hxg6 $11 fxg6 11. Nf3) 10... Bh8 $1 $15 {[%emt 0:00:20]} 11. Kf1 {[%emt 0:01:53]} a6 {[%emt 0:10:27]} 12. Bg5 {[%emt 0:00:24]} Nbd7 {[%emt 0:04:10][%cal Ob7b5] [#]} 13. g3 $146 {[%emt 0:07:35]} ({Predecessor:} 13. Nf3 b5 14. cxb5 axb5 15. Bxb5 Ba6 16. Bxa6 Rxa6 17. g3 Qb8 18. Rb1 Ne4 19. Nxe4 Rxe4 {1-0 (36) Dardha,D (2541)-Piceu,T (2336) Cappelle la Grande 2022}) 13... b5 {[%emt 0:11:31]} 14. cxb5 {[%emt 0:05:31]} Qb6 {[%emt 0:00:47] White must now prevent ...axb5.} 15. f3 $2 {[%emt 0:02:08] [#]} (15. Bxf6 $11 Nxf6 16. Rh4) 15... axb5 $1 $19 {[%emt 0:07:37]} 16. Bxb5 {[%emt 0:00:53]} Ba6 $2 {[%emt 0:01:21]} (16... Nh5 $19 {Strongly threatening ...Bxc3.} 17. a4 (17. Rxh5 $2 Bxc3 18. Qd3 Bd4 $19) 17... Bxc3 18. bxc3 Nxg3+ 19. Kg2 Nxh1) 17. a4 $15 {[%emt 0:05:32]} Bxb5+ {[%emt 0:00:12]} 18. axb5 {[%emt 0:00:09]} Rxa1 {[%emt 0:04:22]} 19. Qxa1 {[%emt 0:01:50]} Qb7 {[%emt 0:00:13]} (19... Nh5 20. Kg2 $14) 20. Nge2 {[%emt 0:52:56]} Nxd5 {[%emt 0:01:52]} 21. Kf2 $2 {[%emt 0:06:27][%mdl 8192]} (21. Qa6 $15 Qxa6 22. bxa6 Nxc3 23. bxc3 (23. Nxc3 Ra8 $17)) 21... Ne5 $2 {[%emt 0:21:43]} (21... Nxc3 $19 {is more deadly.} 22. Nxc3 Bd4+ 23. Kg2 Bxc3) 22. Qd1 {[%emt 0:05:42]} (22. Qa6 $17 {was the only chance.} Nd3+ 23. Kg2 Qxa6 24. bxa6 Nxc3 25. Nxc3 Bxc3 26. bxc3 Re2+ 27. Kf1 Re1+ 28. Kg2 Re2+ 29. Kf1 Rf2+ 30. Kg1) 22... Nb4 {[%emt 0:02:15]} (22... Ne3 23. Kxe3 Qxf3+ 24. Kd2 $17) (22... Nc7 $19 23. Nc1 Nxb5) 23. Nc1 $17 {[%emt 0:01:57]} c4 {[%emt 0:08:23]} (23... d5 $17 {aiming for ...c4.} 24. Re1 d4) 24. Re1 $1 $15 {[%emt 0:00:51]} (24. Kg2 Ned3 25. Qd2 (25. Nxd3 Nxd3 26. Qd2 Bd4 $19) 25... d5 $19) 24... Qd7 {[%emt 0:05:29]} ({Better is} 24... d5 $15 25. Kg2 Ra8) 25. Kg2 $11 {[%emt 0:01:12]} Ned3 $2 {[%emt 0:00:58]} (25... Ra8 $11 {and Black is okay.}) 26. Nxd3 {[%emt 0:00:32]} (26. Rxe8+ $18 Qxe8 27. b6) 26... Nxd3 {[%emt 0:00:06]} (26... cxd3 $16 {was worth a try.} 27. b6 (27. Rxe8+ Qxe8 28. b6 Nc2 $16) 27... Nc2 28. Rxe8+ Qxe8) 27. Rxe8+ $18 {[%emt 0:01:05]} Qxe8 {[%emt 0:00:05]} 28. Ne4 {[%emt 0:00:05]} (28. b6 $18) 28... Qe5 $2 {[%emt 0:04:00][%mdl 8192]} ({Resist} 28... Bxb2 29. b6 Qc6 30. Qe2 $16) (28... Qxb5 $15 {keeps the upper hand.} 29. Nf6+ Bxf6 30. Bxf6 Qc5) 29. Qa4 {[%emt 0:00:39] Threatening mate with Qa8+.} ({Not} 29. Qa1 Qxb2+ 30. Qxb2 Bxb2 $18) 29... Qxb2+ {[%emt 0:00:34]} 30. Kh3 {[%emt 0:00:10]} (30. Nd2 $142 {[%cal Ra4a8]} Qa1 31. Qxc4) 30... f6 $2 {[%emt 0:00:15] [#]} (30... Qa1 $18 31. Qxa1 Bxa1) 31. Qa8+ {[%emt 0:01:45][%mdl 64] Skewer, Deflection. White mates.} Kf7 {[%emt 0:00:04]} 32. Qxh8 {[%emt 0:00:47]} fxg5 {[%emt 0:01:00]} 33. Qxb2 {[%emt 0:00:12]} Nxb2 {[%emt 0:00:04]} 34. b6 {[%emt 0:00:05] Weighted Error Value: White=0.59/Black=0.93} 1-0

[Event "121st Swiss Championship 2022"]
[Site "Samnaun-Compatsch"]
[Date "2022.07.06"]
[Round "4.11"]
[White "Salzgeber, Frank"]
[Black "Labelle, Ambroise"]
[Result "1/2-1/2"]
[ECO "E51"]
[WhiteElo "2131"]
[BlackElo "2045"]
[Annotator "TA"]
[PlyCount "38"]
[EventDate "2022.06.28"]
[EventType "swiss"]
[EventCountry "SUI"]
[SourceTitle "playchess.com"]
[Source "ChessBase"]
[SourceQuality "1"]
[TimeControl "40/5400+30:1800+30"]

{[%evp 20,38,29,37,27,30,20,29,27,22,21,27,25,30,31,16,24,12,29,18,192]} 1. d4 {[%emt 0:00:02]} e6 {[%emt 0:00:40]} 2. c4 {[%emt 0:00:43]} Nf6 {[%emt 0:00:08]} 3. Nf3 {[%emt 0:01:24]} d5 {[%emt 0:00:15]} 4. Nc3 {[%emt 0:00:21]} Bb4 {[%emt 0:01:24]} 5. e3 {[%emt 0:00:32]} O-O {[%emt 0:00:19]} 6. Bd2 {[%emt 0:03:07]} c5 {[%emt 0:07:31]} 7. a3 {[%emt 0:08:02]} Bxc3 {[%emt 0:00:12]} 8. Bxc3 {[%emt 0:00:06]} Ne4 {[%emt 0:00:31]} 9. Rc1 {[%emt 0:01:29]} Nxc3 {[%emt 0:02:21]} 10. Rxc3 {[%emt 0:00:23]} cxd4 {[%emt 0:01:19]} 11. Nxd4 $1 {[%emt 0:01:54] 11.Nxd4 is better than 11.Qxd4.} dxc4 {[%emt 0:09:10] E51: Nimzo-Indian: Rubinstein: 4...0-0 5 Nf3 d5.} 12. Bxc4 {[%emt 0:03:09]} Bd7 {[%emt 0:02:44]} 13. O-O {[%emt 0:03:12]} Nc6 {[%emt 0:00:21] White has an edge.} 14. Nf3 {[%emt 0:09:52] [#] And now Rd3 would win.} Qe7 {[%emt 0:01:57]} 15. Qc2 {[%emt 0:05:47]} Rfd8 {[%emt 0:04:43]} 16. Rc1 {[%emt 0:08:10]} Be8 {[%emt 0:03:46] [#]} 17. b4 $146 {[%emt 0:04:09]} ({Predecessor:} 17. h3 h6 18. b4 a6 19. Ba2 Qd6 20. Bb1 g6 21. h4 Ne5 22. Qe4 Nxf3+ 23. Qxf3 {½-½ (55) Adhiban,B (2639)-Yu,Y (2763) Khanty-Mansiysk 2019}) 17... a6 {[%emt 0:03:37]} 18. h3 {[%emt 0:06:07]} Rd6 {[%emt 0:03:42]} 19. Rd1 {[%emt 0:08:06]} Nb8 $2 {[%emt 0:01:41] Weighted Error Value: White=0.05 (flawless) /Black=0.02 (flawless)} (19... h6 $11 {and Black stays safe.}) 1/2-1/2

[Event "121st Swiss Championship 2022"]
[Site "Samnaun-Compatsch"]
[Date "2022.07.07"]
[Round "5.1"]
[White "Gallagher, Joseph G."]
[Black "Baenziger, Fabian"]
[Result "1/2-1/2"]
[ECO "C47"]
[WhiteElo "2447"]
[BlackElo "2451"]
[Annotator "TA"]
[PlyCount "46"]
[EventDate "2022.06.28"]
[EventType "swiss"]
[EventCountry "SUI"]
[SourceTitle "playchess.com"]
[Source "ChessBase"]
[SourceQuality "1"]
[TimeControl "40/5400+30:1800+30"]

{[%evp 17,46,0,0,0,0,0,0,0,8,9,15,8,33,11,12,8,16,6,7,0,8,0,6,14,14,0,0,7,14,9,40]} 1. e4 {[%emt 0:00:01]} e5 {[%emt 0:00:09]} 2. Nf3 {[%emt 0:00:36]} Nc6 {[%emt 0:00:22]} 3. Nc3 {[%emt 0:00:17]} Nf6 {[%emt 0:00:06]} 4. d4 {[%emt 0:01:02]} exd4 {[%emt 0:00:08]} 5. Nxd4 {[%emt 0:00:05]} Bb4 {[%emt 0:00:07]} 6. Nxc6 {[%emt 0:00:29]} bxc6 {[%emt 0:00:06]} 7. Bd3 {[%emt 0:00:07]} d5 {[%emt 0:00:22]} 8. exd5 {[%emt 0:00:12]} O-O {[%emt 0:00:09] seems to push 8...cxd5 aside.} 9. O-O {[%emt 0:00:20]} cxd5 {[%emt 0:00:28]} 10. h3 {[%emt 0:04:30] Prevents Bg4. C47: Scotch Four Knights and Four Knights with 4 g3.} c6 {[%emt 0:01:19]} 11. Qf3 {[%emt 0:01:45]} Bd6 {[%emt 0:06:53]} 12. Bf4 {[%emt 0:01:32]} Rb8 {[%emt 0:01:01]} 13. b3 {[%emt 0:00:36]} Be6 {[%emt 0:13:29]} 14. Ne2 {[%emt 0:04:22]} c5 {[%emt 0:05:53]} 15. c3 {[%emt 0:02:57]} Re8 {[%emt 0:02:53] The position is equal.} 16. Rfe1 {[%emt 0:03:07]} Rb6 {[%emt 0:06:25]} 17. Rad1 {[%emt 0:03:23]} h6 {[%emt 0:02:48] [#]} 18. Bc2 $146 {[%emt 0:04:19]} ({Predecessor:} 18. g4 Nd7 19. Qg3 Qb8 20. Bxd6 Qxd6 21. Nf4 Ne5 22. Be4 d4 23. cxd4 cxd4 {0-1 (53) Vardanian,H (2109)-Mazur,S (2439) Batumi 2018}) 18... Bc8 {[%emt 0:12:28]} 19. Bxd6 {[%emt 0:15:21]} Rxd6 {[%emt 0:05:43]} 20. Nf4 {[%emt 0:01:09] Prevents Rde6.} Bb7 {[%emt 0:04:29]} 21. Rxe8+ {[%emt 0:06:41]} Qxe8 {[%emt 0:00:04]} 22. b4 {[%emt 0:23:49]} cxb4 {[%emt 0:10:37]} 23. cxb4 {[%emt 0:00:06]} Qc8 {[%emt 0:00:06] An interesting draw.  Weighted Error Value: White=0.05 (flawless) /Black=0.04 (flawless)} 1/2-1/2

[Event "121st Swiss Championship 2022"]
[Site "Samnaun-Compatsch"]
[Date "2022.07.07"]
[Round "5.2"]
[White "Gaehwiler, Gabriel"]
[Black "Wyss, Jonas"]
[Result "1-0"]
[ECO "A16"]
[WhiteElo "2420"]
[BlackElo "2223"]
[Annotator "TA"]
[PlyCount "95"]
[EventDate "2022.06.28"]
[EventType "swiss"]
[EventCountry "SUI"]
[SourceTitle "playchess.com"]
[Source "ChessBase"]
[SourceQuality "1"]
[TimeControl "40/5400+30:1800+30"]

{[%evp 9,95,24,35,0,10,0,0,-16,-14,-15,-21,-41,-37,-41,-33,-98,-95,-202,-111,-122,-110,-162,-158,-172,-154,-198,-113,-94,-107,-133,-86,-99,-62,-117,-64,-60,-45,-83,-72,-82,-76,-94,77,82,219,212,220,220,224,218,232,235,199,100,97,0,88,93,142,34,25,0,193,124,118,97,140,140,185,184,377,370,458,422,404,388,379,362,646,672,623,617,29995,29996,29996,1995,29997,29998]} 1. Nf3 {[%emt 0:00:05]} Nf6 {[%emt 0:00:10]} 2. c4 {[%emt 0:00:10]} g6 {[%emt 0:00:11]} 3. Nc3 {[%emt 0:00:10]} d5 {[%emt 0:00:17]} 4. cxd5 {[%emt 0:00:14]} Nxd5 {[%emt 0:00:09]} 5. h4 {[%emt 0:00:21][%cal Bh2h4,Bh4h5,Bh5h6][%mdl 32]} Bg7 {[%emt 0:01:24]} 6. h5 {[%emt 0:07:50] A16: English Opening: 1...Nf6 with ...d5.} Nc6 {[%emt 0:14:17] The main line 6...Nc6 scores better than 6...Nxc3.} 7. h6 {[%emt 0:27:07]} Bf6 {[%emt 0:05:38]} 8. Ne4 {[%emt 0:03:16] The position is equal.} e5 {[%emt 0:03:50]} 9. Nxf6+ {[%emt 0:02:00]} Qxf6 {[%emt 0:04:03]} 10. d3 {[%emt 0:08:57] [#]} Bg4 $146 {[%emt 0:07:11]} ({Predecessor:} 10... Qe7 11. Qb3 Nb6 12. Be3 Be6 13. Qc2 Nb4 14. Qd2 f6 15. a3 N4d5 16. Rc1 Nxe3 17. Qxe3 {0-1 (53) Bocharov,I (2557)-Khusenkhojaev,M (2450) Cheliabinsk 2019}) 11. Bg5 {[%emt 0:04:59]} Qe6 {[%emt 0:02:50]} 12. Nd2 {[%emt 0:07:00]} (12. Nh2 $15) 12... f6 $17 {[%emt 0:05:04][%cal Bf7f6,Bf6f5][%mdl 32]} 13. Be3 {[%emt 0:00:39]} (13. Bh4 $17) 13... Nxe3 {[%emt 0:02:52]} (13... e4 $1 $19 {[%cal Re4d3] ...exd3 is the strong threat.} 14. d4 (14. Nxe4 $2 Nxe3 15. fxe3 f5 $19) 14... O-O-O) 14. fxe3 {[%emt 0:00:03]} O-O-O {[%emt 0:03:02] And now ...Rxd3 would win.} 15. Qa4 {[%emt 0:01:16]} (15. Qb3 $17) 15... f5 $19 {[%emt 0:04:18][%cal Oe5e4]} 16. Nb3 {[%emt 0:19:24]} Qd6 {[%emt 0:03:28][%cal Oe5e4] Against Nc5} 17. Qb5 {[%emt 0:01:54]} Qb4+ {[%emt 0:03:27]} (17... b6 $19 {aiming for ...Nb4.} 18. Rc1 Ne7) 18. Qxb4 $17 {[%emt 0:00:02]} Nxb4 {[%emt 0:00:10]} 19. Kf2 {[%emt 0:00:57]} b6 {[%emt 0:03:28]} (19... e4 $142 20. d4 Rd6) 20. Nd2 {[%emt 0:03:53]} Rhe8 {[%emt 0:10:46]} 21. Nc4 {[%emt 0:01:54]} (21. a3 $15 Nd5 22. g3) 21... Nd5 {[%emt 0:03:26]} (21... b5 $17 22. Na5 e4) 22. g3 $15 {[%emt 0:02:16]} Nf6 {[%emt 0:02:25]} 23. Bg2 {[%emt 0:00:41][%cal Bf1g2,Bg2h3,Bh3f5][%mdl 32]} e4 {[%emt 0:00:40]} 24. d4 {[%emt 0:00:26]} Bh5 {[%emt 0:02:13]} 25. Bh3 {[%emt 0:00:05]} Ng8 $2 {[%emt 0:02:17]} (25... Rf8 $17 {and life is bright.}) 26. Bxf5+ $1 $16 {[%emt 0:00:31]} Kb8 {[%emt 0:03:23]} (26... gxf5 $16 27. Rxh5 Ne7) 27. Bh3 $1 $18 {[%emt 0:05:32] Black must now prevent g4.} (27. Ne5 Rxe5 28. dxe5 Rf8 $17) 27... Nxh6 {[%emt 0:08:01]} 28. Ne5 {[%emt 0:00:06] Prevents Bg4.} Rd5 {[%emt 0:01:55]} 29. g4 {[%emt 0:01:03]} (29. Nd7+ $6 Kb7 $16) 29... Rdxe5 {[%emt 0:00:05]} 30. dxe5 {[%emt 0:00:13]} Bxg4 {[%emt 0:00:29]} 31. Bg2 {[%emt 0:00:46]} (31. Rag1 $18 Bh5 32. e6) 31... Bh5 $16 {[%emt 0:00:27]} 32. Bh3 {[%emt 0:01:41]} (32. Bxe4 $16 {Hoping for Bf3.} Ng4+ 33. Kg3) 32... Rxe5 {[%emt 0:00:40]} (32... Bg4 $1 $11 {remains equal.}) 33. Rad1 $1 {[%emt 0:00:07]} Bg4 {[%emt 0:02:51] [#]} ({Better is} 33... Kb7) 34. Rd8+ {[%emt 0:00:45]} (34. Bg2 $1 $16 Bh5 35. Rd8+ Kb7 36. Rd7) 34... Kb7 $14 {[%emt 0:00:04]} 35. Bg2 {[%emt 0:00:34]} Bh5 $2 {[%emt 0:00:17]} (35... Nf7 $11 {and Black has nothing to worry.} 36. Rf8 Ng5) 36. Rd7 {[%emt 0:00:46]} (36. Rh4 $18) 36... Ng4+ {[%emt 0:00:16]} 37. Kg3 {[%emt 0:00:07]} Nxe3 {[%emt 0:00:45]} 38. Kf4 {[%emt 0:00:46] Inhibits Rg5.} Ng4 {[%emt 0:00:51]} 39. Rc1 {[%emt 0:00:26]} ({Wrong is} 39. Bxe4+ $2 {[#]} Rxe4+ $1 {[%mdl 512]} 40. Kxe4 Nf6+ 41. Kf4 Nxd7 $19) ({Don't take} 39. Rxh7 $6 Rf5+ 40. Kxe4 Rf2 $16) 39... Rf5+ $2 {[%emt 0:01:47]} (39... Ka6 {was called for.}) 40. Kxe4 $18 {[%emt 0:00:48]} Nf6+ {[%emt 0:00:30]} 41. Kd3+ {[%emt 0:30:24]} Ka6 {[%emt 0:02:00]} 42. Rdxc7 {[%emt 0:00:00]} Nd5 {[%emt 0:01:36]} 43. e4 {[%emt 0:00:00]} ({Less strong is} 43. Bxd5 Rxd5+ 44. Kc3 Rc5+ 45. Rxc5 bxc5 $18) 43... Nf4+ $2 {[%emt 0:00:21]} (43... Nxc7 44. exf5 Ne8) 44. Kd2 {[%emt 0:00:00] Threatens to win with Bf1+.} Re5 {[%emt 0:07:57]} 45. Bf1+ {[%emt 0:00:00]} b5 {[%emt 0:00:31]} 46. R1c6+ {[%emt 0:00:00]} Ka5 {[%emt 0:00:05]} 47. Rxa7+ {[%emt 0:00:00]} Kb4 {[%emt 0:00:04]} 48. Rc3 {[%emt 0:00:00] A wild game.  Weighted Error Value: White=0.22 (precise) /Black=0.58} 1-0

[Event "121st Swiss Championship 2022"]
[Site "Samnaun-Compatsch"]
[Date "2022.07.07"]
[Round "5.3"]
[White "Collin, Moritz Valentin"]
[Black "Pavlovic, Milos"]
[Result "0-1"]
[ECO "A40"]
[WhiteElo "2129"]
[BlackElo "2461"]
[Annotator "TA"]
[PlyCount "44"]
[EventDate "2022.06.28"]
[EventType "swiss"]
[EventCountry "SUI"]
[SourceTitle "playchess.com"]
[Source "ChessBase"]
[SourceQuality "1"]
[TimeControl "40/5400+30:1800+30"]

{[%evp 9,44,3,2,2,0,3,1,0,-8,-29,-30,-62,-46,-71,-75,-119,-124,-193,-183,-231,-227,-227,-202,-221,-214,-355,-255,-266,-237,-241,-240,-335,-300,-281,-251,-495,-488]} 1. d4 {[%emt 0:00:02]} e6 {[%emt 0:00:19]} 2. c4 {[%emt 0:00:08]} Bb4+ {[%emt 0:00:07]} 3. Nc3 {[%emt 0:00:39]} c5 {[%emt 0:00:21]} 4. e3 {[%emt 0:00:29]} Nc6 {[%emt 0:02:10]} 5. Nge2 {[%emt 0:01:17]} cxd4 {[%emt 0:05:56]} 6. exd4 {[%emt 0:00:10] A40: Unusual replies to 1 d4.} d5 {[%emt 0:00:05]} 7. a3 {[%emt 0:04:22]} Bxc3+ {[%emt 0:12:10]} 8. Nxc3 {[%emt 0:00:09] The position is equal.} Nge7 {[%emt 0:00:13]} 9. c5 {[%emt 0:13:40]} Nf5 {[%emt 0:06:21]} 10. Bb5 {[%emt 0:12:44] [#]} Qh4 $146 {[%emt 0:03:07]} ({Predecessor:} 10... O-O 11. Bxc6 bxc6 12. O-O Qh4 13. Be3 e5 14. g3 Qh3 15. Ne2 f6 16. Rc1 h5 17. Kh1 Ba6 18. Re1 Bxe2 19. Qxe2 Rae8 20. Qf3 Nh4 {0-1 (20) Deuer,M (2304)-Sarrau,J (2401) Terme Catez 2022}) 11. Ne2 {[%emt 0:09:33]} O-O {[%emt 0:00:22][%cal Rf5d4,Bh8f8,Bf8b8,Bb8b3,Bb3d3][%mdl 32]} 12. Bxc6 {[%emt 0:15:58]} bxc6 {[%emt 0:00:18]} 13. Qd3 {[%emt 0:03:01] [#]} (13. b4 $17) 13... a5 $1 $19 {[%emt 0:02:45]} 14. Be3 {[%emt 0:04:26]} (14. g3 {might work better.} Qe7 15. Qc2) 14... Ba6 {[%emt 0:00:50]} 15. Qd2 {[%emt 0:00:12]} Bxe2 {[%emt 0:25:01]} 16. Kxe2 {[%emt 0:00:25]} Rfb8 {[%emt 0:00:41][%cal Oe6e5] aiming for ...e5!} 17. Rab1 {[%emt 0:09:01]} (17. Bf4 $142) 17... Qg4+ {[%emt 0:01:49]} 18. Kf1 {[%emt 0:03:01]} Qe4 {[%emt 0:10:38]} 19. Re1 {[%emt 0:01:48]} Rb3 {[%emt 0:00:09]} 20. h4 {[%emt 0:02:26]} Rd3 {[%emt 0:12:11]} ({And not} 20... Nxh4 21. f3 Nxf3 22. gxf3 Qxf3+ 23. Kg1 $17) 21. Qc1 {[%emt 0:03:41]} Nxd4 {[%emt 0:01:08] [#] Threatens to win with ...Nb3.} 22. Rh3 $2 {[%emt 0:03:36]} (22. Bf4 Qf5 23. Be5) 22... Nb3 {[%emt 0:00:23] White got outplayed after the opening.  Weighted Error Value: White=0.48/Black=0.11 (very precise)} 0-1

[Event "121st Swiss Championship 2022"]
[Site "Samnaun-Compatsch"]
[Date "2022.07.07"]
[Round "5.4"]
[White "Barth, Can-Elian"]
[Black "Gschnitzer, Adrian"]
[Result "0-1"]
[ECO "D35"]
[WhiteElo "2040"]
[BlackElo "2433"]
[Annotator "TA"]
[PlyCount "70"]
[EventDate "2022.06.28"]
[EventType "swiss"]
[EventCountry "SUI"]
[SourceTitle "playchess.com"]
[Source "ChessBase"]
[SourceQuality "1"]
[TimeControl "40/5400+30:1800+30"]

{[%evp 13,70,16,33,18,21,11,41,35,37,14,15,0,30,-6,-2,-6,0,0,0,0,0,0,40,37,35,21,22,22,39,17,22,8,15,0,50,0,49,-81,-28,-26,-39,-202,-203,-206,-207,-193,-193,-200,-203,-338,-318,-477,-292,-1272,-1283,-1235,-1205,-29974,-29963]} 1. d4 {[%emt 0:00:03]} d5 {[%emt 0:00:06]} 2. c4 {[%emt 0:00:05]} e6 {[%emt 0:00:06]} 3. Nc3 {[%emt 0:00:04]} Nf6 {[%emt 0:00:07]} 4. cxd5 {[%emt 0:00:09]} exd5 {[%emt 0:00:07]} 5. Bg5 {[%emt 0:00:08]} Be7 {[%emt 0:00:09]} 6. e3 {[%emt 0:00:14]} O-O {[%emt 0:00:13]} 7. Bd3 {[%emt 0:00:21]} Re8 {[%emt 0:00:42]} 8. Nge2 {[%emt 0:01:04] D35: Queen's Gambit Declined: Exchange Variation.} c6 {[%emt 0:02:05]} 9. O-O {[%emt 0:02:00]} Ne4 {[%emt 0:05:47]} 10. Bxe7 {[%emt 0:01:15] White is slightly better.} Qxe7 {[%emt 0:00:06]} 11. Qc2 {[%emt 0:01:06]} Bf5 {[%emt 0:01:56] [#]} 12. Rae1 $146 {[%emt 0:06:57]} ({Predecessor:} 12. a3 Nd7 13. b4 a6 14. Na4 Bg6 15. Nc5 Nd6 16. a4 a5 17. Nf4 Bxd3 18. Nfxd3 axb4 {½-½ (36) Meribanov,V (2398)-Savitski,A (2185) Minsk 2016}) 12... Bg6 {[%emt 0:06:52]} 13. f3 {[%emt 0:07:45]} Nxc3 {[%emt 0:05:18]} 14. Nxc3 {[%emt 0:00:35]} Qd6 {[%emt 0:02:46]} 15. Bxg6 {[%emt 0:02:40]} hxg6 {[%emt 0:00:15]} 16. Qf2 {[%emt 0:01:02]} Na6 {[%emt 0:04:52]} 17. e4 {[%emt 0:07:52]} Nc7 {[%emt 0:00:29]} 18. e5 {[%emt 0:04:41]} Qb4 {[%emt 0:01:28]} 19. a3 {[%emt 0:08:36]} Qc4 {[%emt 0:01:27]} 20. f4 {[%emt 0:04:06]} Re7 {[%emt 0:00:58]} 21. Ne2 {[%emt 0:06:47]} Qc2 {[%emt 0:03:19]} 22. Qh4 {[%emt 0:06:06]} Rae8 {[%emt 0:01:18]} 23. Rf3 {[%emt 0:03:38]} f5 {[%emt 0:00:53]} (23... g5 24. fxg5 Qh7 25. Qg4 $16) (23... f6 $11) 24. Rg3 {[%emt 0:09:11]} (24. b4 $14) 24... Re6 {[%emt 0:03:02]} (24... Qxb2 $11 25. Rxg6 (25. Rh3 Qd2 $17) 25... Ne6) 25. Qg5 {[%emt 0:04:41] [#]} (25. b4 $14) 25... Qd2 {[%emt 0:01:52]} ({Black should try} 25... Nb5 $1 $17 26. a4 Qd2) 26. Kf1 $11 {[%emt 0:00:30]} Nb5 $36 {[%emt 0:00:23][%cal Bc7b5,Bb5d6,Bd6e4,Be4g3][%mdl 2080] Black has some pressure.} 27. h4 $2 {[%emt 0:01:32] [#] This move loses the game for White.} (27. Nc3 $15) 27... Nd6 $3 $19 {[%emt 0:00:51][%mdl 512]} 28. h5 {[%emt 0:05:06]} Ne4 {[%emt 0:00:37]} ({Worse is} 28... Qxb2 29. Nc3 Nf7 30. Qh4 $11) 29. Qh4 {[%emt 0:00:11][%cal Oh5g6]} Nxg3+ {[%emt 0:01:08]} 30. Qxg3 {[%emt 0:00:46]} gxh5 {[%emt 0:00:53]} 31. Qg5 {[%emt 0:01:22]} (31. Qb3 $142) 31... Rf8 {[%emt 0:08:39]} 32. Ng3 {[%emt 0:03:13]} (32. b3 {is a better defense.}) 32... Rff6 {[%emt 0:04:32] And now ...Rg6 would win.} 33. Ne4 $2 {[%emt 0:09:18] [#]} (33. Ne2 Rf8 34. b4) 33... fxe4 $1 {[%emt 0:00:19][%cal Bf5e4,Be4e3][%mdl 32]} 34. exf6 {[%emt 0:00:52]} Rxf6 {[%emt 0:00:08]} 35. g3 {[%emt 0:02:44]} e3 {[%emt 0:00:10] Weighted Error Value: White=0.96/Black=0.18 (very precise)} 0-1

[Event "121st Swiss Championship 2022"]
[Site "Samnaun-Compatsch"]
[Date "2022.07.07"]
[Round "5.5"]
[White "Manko, Mariya"]
[Black "Fecker, Noah"]
[Result "1/2-1/2"]
[ECO "A09"]
[WhiteElo "2014"]
[BlackElo "2387"]
[Annotator "RC"]
[PlyCount "52"]
[EventDate "2022.06.28"]
[EventType "swiss"]
[EventCountry "SUI"]
[SourceTitle "playchess.com"]
[Source "ChessBase"]
[SourceQuality "1"]
[TimeControl "40/5400+30:1800+30"]

1. Nf3 {[%emt 0:00:11]} d5 {[%emt 0:00:05]} 2. c4 {[%emt 0:05:29]} e6 {[%emt 0:00:14]} 3. b3 {[%emt 0:01:12]} d4 {[%emt 0:01:40]} 4. g3 {[%emt 0:04:31]} Nf6 {[%emt 0:05:12]} 5. Bg2 {[%emt 0:00:49]} Nc6 {[%emt 0:02:03]} 6. O-O {[%emt 0:01:43]} e5 {[%emt 0:05:05]} 7. d3 {[%emt 0:00:25]} Be7 {[%emt 0:01:53]} 8. b4 {[%emt 0:01:23]} Nxb4 {[%emt 0:07:37]} 9. Nxe5 {[%emt 0:00:38]} O-O {[%emt 0:00:30]} 10. Na3 {[%emt 0:10:39]} Re8 {[%emt 0:11:38]} 11. Nc2 {[%emt 0:03:50]} Nxc2 {[%emt 0:05:37]} 12. Qxc2 {[%emt 0:00:09]} c5 {[%emt 0:03:58]} 13. Rb1 {[%emt 0:05:29]} Bd6 {[%emt 0:01:25]} 14. Nf3 {[%emt 0:00:31]} h6 {[%emt 0:00:28]} 15. Re1 {[%emt 0:10:26]} Rb8 {[%emt 0:06:45]} 16. h3 {[%emt 0:05:49]} Bd7 {[%emt 0:01:56]} 17. e3 {[%emt 0:05:36]} dxe3 {[%emt 0:03:59]} 18. Rxe3 {[%emt 0:02:12]} Rxe3 {[%emt 0:04:19]} 19. Bxe3 {[%emt 0:00:08]} Bc6 {[%emt 0:02:37]} 20. Rd1 {[%emt 0:03:07]} Qa5 {[%emt 0:03:08]} 21. Bd2 {[%emt 0:03:58]} Qa4 {[%emt 0:05:57]} 22. Qb3 {[%emt 0:04:29]} Re8 {[%emt 0:04:57]} 23. Bc3 {[%emt 0:01:01]} Re2 {[%emt 0:04:45]} 24. Rd2 {[%emt 0:00:27]} Re6 {[%emt 0:01:51]} 25. Nh4 {[%emt 0:09:37]} Qa6 {[%emt 0:03:17]} 26. Qb2 {[%emt 0:00:12]} Bxg2 {[%emt 0:05:16]} 1/2-1/2